Cogmind - Beta 15 @@@ ROGUE MODE // 2025.06.13 @ 23:27:24 Player: GodofBeaverz Result: Destroyed by 6H-DPR(M) with Battle Cannon Performance ------------- Evolutions (1) 500 Regions Visited (4) 800 Robots Destroyed (97) 485 Value Destroyed (2639) 2639 Prototype IDs (10) 200 Alien Tech Used (0) 0 Bonus (848) 848 TOTAL SCORE: 5472 Bonus ------- High Alert Combat Kills 157 Follower Combat Kills 123 Met Imprinter 300 Was Imprinted 300 Friendly Fire -32 Cogmind --------- Core Integrity 0/400 Matter 135/300 Energy 100/100 System Corruption 6% Temperature Hot (207) Movement Core (1450) Ox28 Location -7/Zion Parts ------- > --- POWER (1) -------- (None) > --- PROPULSION (3) --- (None) > --- UTILITY (3) ------ Huge Storage Unit Advanced Targeting Computer > --- WEAPON (2) ------- Shotgun Shotgun > --- INVENTORY (25) --- Reinforced Ion Engine Scrap Suit Cooling System Compact Matter Pod (150) Experimental Sensor Array 0b10 Decoder Chip [Scout] Hardened Light Armor Plating Authchip [R/Combat] Relay Coupler [Specialist] (43) Hacking Drone Bay EM Pulse Cannon Advanced Beam Cannon Improved Light Cannon Slug Cannon Grenade Launcher Grenade Launcher Rocket Launcher Heavy Rocket Launcher Plasma Cutter Makeshift Axe CR-A16's Pointy Stick Peak State ------------ > --- POWER ------------ Fission Core > --- PROPULSION ------- Light Treads Spiked Medium Treads Spiked Medium Treads > --- UTILITY ---------- Huge Storage Unit Advanced Targeting Computer Hardened Medium Armor Plating > --- WEAPON ----------- EM Pulse Cannon Advanced Beam Cannon > --- INVENTORY -------- Reinforced Ion Engine Scrap Suit Cooling System Compact Matter Pod Experimental Sensor Array 0b10 Decoder Chip [Scout] Hardened Light Armor Plating Experimental System Shield Relay Coupler [Specialist] Hacking Drone Bay Heavy Assault Rifle Shotgun Shotgun Heavy Battle Rifle Improved Light Cannon Slug Cannon Grenade Launcher Grenade Launcher Rocket Launcher Heavy Rocket Launcher Plasma Cutter Makeshift Axe CR-A16's Pointy Stick Self-destruct Interrupter [Rating: 38] Favorites ----------- Power Light Ion Engine Engine Light Ion Engine Power Core Light Nuclear Core Propulsion Wheel Treads Advanced Treads Leg Aluminum Leg Wheel Wheel Hover Unit Hover Unit Utility Huge Storage Unit Device Cooling System Storage Huge Storage Unit Processor Improved Targeting Computer Protection Hardened Medium Armor Plating Weapon EM Pulse Gun Energy Gun EM Pulse Gun Energy Cannon EM Pulse Cannon Ballistic Gun Light Assault Rifle Ballistic Cannon Improved Light Cannon Launcher Grenade Launcher Special Weapon Plasma Cutter Slashing Weapon Mining Claw Special Melee Weapon Datajack Build | -11 -10 -9 -9 -7 ------- Run | Yrd Mat Mat Min Zio Slots Evolved 2 | . . 2 . . Power . | . . . . . Propulsion 1 | . . 1 . . Utility 1 | . . 1 . . Weapon . | . . . . . Parts Attached 98 | 5 43 36 5 9 Power 12 | 1 6 4 . 1 Engine 9 | 1 4 4 . . Core 3 | . 2 . . 1 Reactor . | . . . . . Propulsion 23 | 2 9 9 1 2 Treads 12 | . . 9 1 2 Leg 2 | . 2 . . . Wheel 8 | 2 6 . . . Hover 1 | . 1 . . . Flight . | . . . . . Utility 29 | . 13 10 1 5 Device 9 | . 5 3 1 . Storage 7 | . 5 2 . . Processor 8 | . 2 2 . 4 Hackware . | . . . . . Protection 5 | . 1 3 . 1 Artifact . | . . . . . Weapon 34 | 2 15 13 3 1 Energy Gun 8 | 2 3 3 . . Energy Cannon 3 | . 1 2 . . Ballistic Gun 12 | . 4 5 2 1 Ballistic Cannon 3 | . 1 1 1 . Launcher 3 | . 2 1 . . Special Weapon 2 | . 1 1 . . Impact Weapon . | . . . . . Slashing Weapon 2 | . 2 . . . Piercing Weapon . | . . . . . Special Melee Weapon 1 | . 1 . . . Unidentified Prototypes . | . . . . . Parts Lost 11 | . 3 3 1 4 Power 2 | . . 1 . 1 Propulsion 5 | . 3 . 1 1 Utility 2 | . . 1 . 1 Weapon 2 | . . 1 . 1 Highest Loss Streak 4 | . 1 1 1 4 To Critical Strikes . | . . . . . Average Backups 13 | 4 9 20 24 23 Power . | . . 1 1 1 Propulsion 1 | 1 1 . . . Utility 4 | . 3 6 7 9 Weapon 6 | 1 3 11 14 12 Tool/Special . | . . . . . Unused Backups 42 | . 6 11 3 22 Power 3 | . 1 2 . . Propulsion 1 | . . 1 . . Utility 28 | . 4 7 2 15 Weapon 9 | . . 1 1 7 Tool/Special 1 | . 1 . . . Average Slot Usage (%) 98 | . 95 99 100 99 Engine 9 | . 8 10 11 7 Core 2 | . 5 . . 2 Treads 21 | . . 32 33 32 Leg 1 | . 3 . . . Wheel 7 | . 21 . . . Device 5 | . 7 4 11 . Storage 10 | . 10 11 11 11 Processor 9 | . 6 9 11 11 Protection 5 | . 1 8 . 10 Energy Gun 5 | . 3 9 2 5 Energy Cannon 5 | . . 3 5 15 Ballistic Gun 7 | . 15 3 6 . Ballistic Cannon 1 | . . 2 4 . Launcher 2 | . 5 1 . . Peak Build Rating 38 | 5 12 26 27 38 Average Rating 14 | 3 8 21 25 30 On Entrance 13 | . 5 11 25 25 Naked Turns . | . . . . . Heaviest Build 108 | 6 32 104 102 108 Greatest Support 76 | 20 26 66 66 76 Greatest Overweight (x) 6 | . 6 2 1 1 Average Overweight (x) . | . 1 . 1 1 Largest Inventory Capacity 25 | 5 15 25 25 25 Average Capacity 14 | 5 10 21 25 25 Most Carried 25 | 5 15 25 25 25 Average Carried 14 | 4 9 20 24 24 Final Capacity 25 | 5 15 25 25 25 Final Carried 25 | 5 15 25 24 22 Class Distribution -------------------- 84% | Mutant 15% | Scavenger-Mutant Dominant Class ---------------- Mutant | -10/Materials Mutant | -9/Materials Mutant | -9/Mines Mutant | -7/Zion Resources | -11 -10 -9 -9 -7 ----------- Run | Yrd Mat Mat Min Zio Matter Collected 3352 | 272 1470 1229 212 169 Remotely . | . . . . . Salvage Created 2966 | 56 1166 1510 134 100 Parts 211 | 4 81 114 8 4 Haulers Intercepted 2 | . 2 . . . Recyclers Shooed 5 | . 3 1 1 . Parts Field Recycled . | . . . . . Retrieved Matter . | . . . . . Parts Self-Destructed 1 | . . . . 1 Prevented . | . . . . . Kills | -11 -10 -9 -9 -7 ------- Run | Yrd Mat Mat Min Zio Combat Hostiles Destroyed 69 | 1 26 34 6 2 Guns 46 | 1 13 29 2 1 Cannons 10 | . 3 5 1 1 AOE 13 | . 10 . 3 . Classes Destroyed 13 | 2 7 2 . 2 Worker 4 | 1 2 1 . . Builder 7 | . 3 3 1 . Tunneler 3 | . 2 1 . . Hauler 2 | . 2 . . . Recycler 3 | . 2 1 . . Operator 1 | . 1 . . . Watcher 6 | . 3 3 . . Swarmer 15 | . 6 6 3 . Grunt 41 | 1 20 17 3 . Brawler 1 | . . 1 . . Sentry 10 | . . 10 . . Zionite 2 | . . . . 2 Mutant 2 | . . . . 2 Best Kill Streak 7 | 1 7 4 3 4 Combat Bots Only 4 | 1 3 4 3 2 Max Kills in Single Turn 3 | 1 2 2 3 2 Gunslinging 1 | . . 1 . . Exploded 3 | . 2 . 3 . Melee . | . . . . . Uniques/NPCs Destroyed . | . . . . . Combat | -11 -10 -9 -9 -7 -------- Run | Yrd Mat Mat Min Zio Hostile Shots Fired 384 | 3 104 124 42 111 Missed 106 | 1 31 34 15 25 Hits 278 | 2 73 90 27 86 Melee 13 | . . . . 13 Projectile 265 | 2 73 90 27 73 Critical Strikes 13 | . 2 5 . 6 Part Disruptions 1 | . . . . 1 Damage Taken 3668 | 35 810 1208 310 1305 Core 591 | 25 166 109 46 245 Absorbed by Shields . | . . . . . Redirected to Shielding 23 | . 23 . . . Regen/Repaired (Parts) 46 | . . 46 . . Core Remaining (%) 56 | 90 23 . . . Volleys Fired 253 | 6 117 100 15 15 Largest 2 | 1 2 2 2 2 Hottest 133 | 40 110 133 91 73 Shots Fired 458 | 6 209 188 28 27 Gun 317 | 6 154 130 12 15 Cannon 81 | . 20 38 13 10 Launcher 54 | . 35 17 1 1 Special 6 | . . 3 2 1 Kinetic 273 | . 123 109 17 24 Thermal 79 | . 36 31 10 2 Explosive 54 | . 35 17 1 1 Electromagnetic 52 | 6 15 31 . . Robot Hit Streak 17 | 2 11 13 17 10 Robot Miss Streak 6 | 2 5 6 6 2 Penetration Max . | . . . . . Secondary Targets 2 | . . 2 . . Max Gunslinging Chain 1 | . . 1 . . Shots Hit Robots 265 | 3 118 110 16 18 Core Hits 167 | 2 69 81 9 6 Critical Kills 1 | . . . . 1 Critical Parts Destroyed 2 | . 1 . . 1 Critical Strikes 5 | . 3 . . 2 Burn 1 | . 1 . . . Destroy 3 | . 1 . . 2 Blast 1 | . 1 . . . Melee Attacks 11 | . 11 . . . Impact . | . . . . . Slashing 5 | . 5 . . . Piercing . | . . . . . Sneak Attacks 9 | . 9 . . . Combat Hostiles . | . . . . . Follow-up Attacks . | . . . . . Damage Inflicted 5283 | 80 2086 2063 546 508 Guns 2647 | 40 912 1283 143 269 Cannons 1078 | . 171 527 173 207 Explosions 1289 | 40 857 197 163 32 Melee 146 | . 146 . . . Ramming 123 | . . 56 67 . Kinetic 2439 | . 707 1083 173 476 Thermal 788 | 40 286 319 143 . Explosive 1202 | . 810 197 163 32 Electromagnetic 585 | 40 137 408 . . Impact . | . . . . . Slashing 146 | . 146 . . . Piercing . | . . . . . Highest Corruption 6 | . . 2 2 6 Average Corruption 1 | . . 1 2 2 Corruption Purged . | . . . . . Corruption Blocked . | . . . . . Effects 73 | . . 51 15 7 Message Errors 18 | . . 13 3 2 Matter Fused 13 | . . 8 2 3 Heat Flow Errors 11 | . . 9 1 1 Energy Discharges 9 | . . 7 2 . Parts Rejected 2 | . . 2 . . Data Loss (minor) 9 | . . 4 4 1 Data Loss (major) 4 | . . 1 3 . Misfires 6 | . . 6 . . Alerts 1 | . . 1 . . Overload Shots . | . . . . . Overflow Damage 52 | . 33 6 13 . Projectiles . | . . . . . Explosions 20 | . 9 6 5 . Melee 32 | . 24 . 8 . Knockbacks 9 | . 1 5 . 3 Impact . | . . . . . Kinetic 8 | . 1 5 . 2 Secondary 1 | . . . . 1 Self-Inflicted Damage 82 | 15 44 23 . . Shots 5 | 1 3 1 . . Rammed 7 | . . 3 4 . Targets Rammed 7 | . . 3 4 . Kicked . | . . . . . Crushed . | . . . . . Highest Temperature 400 | 7 400 247 218 248 Average Temperature 72 | 3 58 64 102 150 Received Heat Transfer 1395 | 12 333 570 120 360 Effects 2 | . 2 . . . Shutdowns 1 | . 1 . . . Matter Decay 1 | . 1 . . . Siege Activations . | . . . . . Martial Activations . | . . . . . Shielding Activations . | . . . . . Robots Disrupted . | . . . . . Combat Hostiles . | . . . . . Robots Corrupted 2 | . . 1 1 . Combat Hostiles . | . . . . . Parts Fried 6 | . . 3 3 . Impact Corruptions 1 | . . . 1 . Robots Melted . | . . . . . Combat Hostiles . | . . . . . Parts Melted 1 | . . 1 . . Heat Transferred 1528 | 50 704 515 259 . Parts Sabotaged . | . . . . . Parts Stolen . | . . . . . Parts Stripped . | . . . . . Power Chain Reactions 2 | 1 1 . . . Alert | -11 -10 -9 -9 -7 ------- Run | Yrd Mat Mat Min Zio Maximum Alert Level 3 | . 2 3 1 . Low Security (%) 63 | 100 60 . 90 . Level 1 17 | . 21 41 9 . Level 2 17 | . 18 50 . . Level 3 1 | . . 7 . . Level 4 . | . . . . . Level 5 . | . . . . . High Security . | . . . . . Max Security . | . . . . . Peak Influence 715 | 20 577 715 278 . Initial 278 | . . 243 278 . Average 170 | . 177 455 114 . Influence Increases 2705 | 25 1108 1272 300 . Destroy 0b10 Robot/C 1420 | 20 520 680 200 . Destroy 0b10 Robot/NC 135 | 5 75 45 10 . Destroy Leader 396 | . 130 236 30 . Allied During Kill 36 | . . . 36 . Successful Hack 79 | . 33 46 . . Disable Machine 315 | . 150 150 15 . Destroy Structure 234 | . 110 115 9 . Lose Combat Pursuer 90 | . 90 . . . Influence Decreases 2705 | 25 531 1134 1015 . Entered New Map 771 | . . 334 437 . Time Decay 1864 | 25 501 770 568 . Lost Part 70 | . 30 30 10 . Squads Dispatched 20 | . 9 11 . . Investigation 18 | . 8 10 . . Extermination . | . . . . . Reinforcement 2 | . 1 1 . . Assault . | . . . . . Garrison . | . . . . . Intercept . | . . . . . Searches Triggered . | . . . . . Construction Impeded 1 | . . 1 . . Haulers Reinforced . | . . . . . Active Scanning Responses . | . . . . . Cargo Convoy Interrupts . | . . . . . Stealth | -11 -10 -9 -9 -7 --------- Run | Yrd Mat Mat Min Zio Distress Signals 6 | . . 6 . . Communications Jammed . | . . . . . Distress Signals . | . . . . . Times Spotted 119 | 1 39 55 10 14 Peak Tracking Total 8 | 1 3 7 4 8 Tactical Retreats 7 | . 4 . . 3 Traps | -11 -10 -9 -9 -7 ------- Run | Yrd Mat Mat Min Zio Traps Triggered 9 | . 3 6 . . Indirectly . | . . . . . Trap Hack Attempts . | . . . . . Triggered . | . . . . . Disarmed . | . . . . . Reprogrammed . | . . . . . Reused . | . . . . . Traps Extracted . | . . . . . Installed . | . . . . . Triggered . | . . . . . Machines | -11 -10 -9 -9 -7 ---------- Run | Yrd Mat Mat Min Zio Machines Disabled 21 | . 10 10 1 . Max in Single Turn 3 | . 3 2 1 . Machines Repaired . | . . . . . Machines Dismantled 2 | . . 2 . . Machines Sabotaged . | . . . . . Overloaded Fab Kills . | . . . . . Hacking | -11 -10 -9 -9 -7 --------- Run | Yrd Mat Mat Min Zio Machines Accessed 26 | . 11 14 . 1 Terminals 17 | . 8 9 . . Fabricators . | . . . . . Repair Stations 2 | . 1 1 . . Recycling Units 4 | . 2 2 . . Scanalyzers 2 | . . 2 . . Garrison Access . | . . . . . Total Hacks 101 | . 47 50 . 4 Successful 61 | . 26 31 . 4 Failed 39 | . 20 19 . . Catastrophic 6 | . 2 4 . . Database Lockouts 1 | . 1 . . . Manual 10 | . . 3 . 7 Terminals 58 | . 28 30 . . Fabricators . | . . . . . Repair Stations 7 | . 3 4 . . Recycling Units 20 | . 16 4 . . Scanalyzers 12 | . . 12 . . Garrison Access . | . . . . . Terminal Hacks 36 | . 16 16 . 4 Record 18 | . 11 7 . . Part Schematic 4 | . . . . 4 Robot Analysis 1 | . . 1 . . Prototype ID Bank 5 | . 2 3 . . Level Access Points 1 | . . 1 . . Emergency Access Points 1 | . . 1 . . Repair Station Index 1 | . 1 . . . Locate Traps 3 | . . 3 . . Dispatch Records 2 | . 2 . . . Fabricator Hacks . | . . . . . Repair Station Hacks 3 | . . 3 . . Scan Component 2 | . . 2 . . Repair 1 | . . 1 . . Recycling Unit Hacks 12 | . 10 2 . . Recycle Component 1 | . 1 . . . Process 2 | . 2 . . . Report Inventory 2 | . 2 . . . Retrieve Matter 3 | . 3 . . . Retrieve Components 4 | . 2 2 . . Scanalyzer 10 | . . 10 . . Insert Component 5 | . . 5 . . Analyze 5 | . . 5 . . Garrison Access Hacks . | . . . . . Unauthorized Hacks . | . . . . . Terminals . | . . . . . Fabricators . | . . . . . Repair Stations . | . . . . . Recycling Units . | . . . . . Scanalyzers . | . . . . . Garrison Access . | . . . . . Data Cores Recovered . | . . . . . Used . | . . . . . Hacking Detections 25 | . 10 15 . . Full Trace Events 22 | . 10 12 . . Feedback Events 1 | . . 1 . . Corruption 1 | . . 1 . . Feedback Blocked . | . . . . . Robot Schematics Acquired 3 | . . . . 3 Robots Built . | . . . . . Authchips . | . . . . . Time . | . . . . . Total Robot Build Rating . | . . . . . Part Schematics Acquired 22 | . . 4 . 18 Parts Built . | . . . . . Authchips . | . . . . . Time . | . . . . . Total Part Build Rating . | . . . . . Parts Repaired 1 | . . 1 . . Time 26 | . . 26 . . Parts Recycled 1 | . 1 . . . Recycled Matter 193 | . 193 . . . Retrieved Matter 213 | . 213 . . . Retrieved Components 28 | . 9 19 . . Parts Scanalyzed 4 | . . 4 . . Part Schematics Acquired 4 | . . 4 . . Parts Damaged 1 | . . 1 . . Bothacking | -11 -10 -9 -9 -7 ------------ Run | Yrd Mat Mat Min Zio Used RIF Installer . | . . . . . Robots Hacked 3 | . 3 . . . Non-combat 3 | . 3 . . . Combat . | . . . . . Robot Hacks Applied 6 | . 6 . . . parse_system 4 | . 4 . . . no_distress 1 | . 1 . . . find_recycling 1 | . 1 . . . Relay Couplers Released . | . . . . . Fabnet Peak Effective % . | . . . . . Robots Rewired . | . . . . . Allies Hacked . | . . . . . Hacks Repelled . | . . . . . Allies | -11 -10 -9 -9 -7 -------- Run | Yrd Mat Mat Min Zio Total Allies 9 | . . . 3 6 Largest Group 9 | . . . 3 9 Highest-Rated Group 385 | . . . 40 385 Highest-Rated Ally 96 | . . . 16 96 Total Orders . | . . . . . Ally Attacks 43 | . . . 15 28 Total Damage 1016 | . . . 147 869 Kills 8 | . . . 5 3 Allies Corrupted . | . . . . . Allies Melted . | . . . . . Intel | -11 -10 -9 -9 -7 ------- Run | Yrd Mat Mat Min Zio Active Infowar (turns) 4053 | . 3585 467 1 . Optics 305 | . . 305 . . Sensors 2225 | . 2062 163 . . Terrain 323 | . 323 . . . Structural 96 | . 95 1 . . T.N.C. 1110 | . 1110 . . . ECM 1 | . . . 1 . Robot Analysis Total 1 | . . 1 . . Derelict Logs Recovered 3 | . . . 1 2 Drone Launches . | . . . . . Drone Recoveries . | . . . . . Exploration | -11 -10 -9 -9 -7 ------------- Run | Yrd Mat Mat Min Zio Turns Passed 22649 | 7420 5077 4671 1728 3753 Spaces Moved 7832 | 910 2649 2028 714 1531 Core 30 | 26 4 . . . Treads 4228 | . . 1983 714 1531 Legs 349 | . 349 . . . Wheels 3225 | 884 2296 45 . . Hover . | . . . . . Flight . | . . . . . Fastest Speed 50 | 50 80 95 225 230 Average Speed 162 | 79 102 198 227 235 Slowest Speed 350 | 80 350 305 230 253 Overloaded Moves . | . . . . . Propulsion Burnouts . | . . . . . Robots Hopped . | . . . . . Potential Cave-ins . | . . . . . Cave-ins Triggered . | . . . . . Exploration Rate (%) 93 | 86 100 98 93 90 Regions Visited 4 Branch Regions 2 Pre-discovered Areas . | . . . . . Known Exits Taken . | . . . . . Unknown Exits Taken 4 | 1 1 1 1 . Scrap Searched 5 | . . . 1 4 Spaces Dug 10 | . . 6 . 4 Terrain Destroyed 289 | 4 145 126 10 4 Melee . | . . . . . Projectile 3 | . . 1 2 . AOE 286 | 4 145 125 8 4 Terrain Rammed . | . . . . . Walls Destroyed . | . . . . . Machines Disabled . | . . . . . Actions | -11 -10 -9 -9 -7 --------- Run | Yrd Mat Mat Min Zio Total 17307 | 7603 4792 2468 787 1657 Wait 8770 | 6674 1840 191 26 39 Move 7828 | 909 2648 2027 713 1531 Hop . | . . . . . Pick Up 131 | 9 49 43 7 23 Fast Attach 24 | 1 12 6 1 4 Attach 27 | 4 12 5 2 4 Detach 4 | . 2 1 1 . Swap 122 | . 57 45 9 11 Drop 124 | . 44 41 9 30 Fire 253 | 6 117 100 15 15 Melee 11 | . 11 . . . Ram . | . . . . . Kick . | . . . . . Crush 7 | . . 3 4 . Escape Stasis . | . . . . . Rewire . | . . . . . Trap . | . . . . . Miscellaneous 6 | . . 6 . . Route ------- -11/Scrapyard -10/Materials (discovered 5 exits: *Mat x3 / [*Min] / [*Sub]) -9/Materials (discovered 5 exits: *Mat x3 / [*Min x2]) -9/Mines (discovered 3 exits: *Mat x2 / *Zio) -7/Zion (discovered 1 exit: [*Pro]) History --------- Turn | Location | Event 2 | -11/Scrapyard | Met Revision 17 66 | -11/Scrapyard | Discovered new exit (range 8) 7421 | -11/Scrapyard | Entered Materials 7441 | -10/Materials | Build established: Mutant 8278 | -10/Materials | Core integrity fell below 50% 8346 | -10/Materials | Discovered new exit (range 15) 8397 | -10/Materials | Discovered new exit (range 13) 9003 | -10/Materials | Central database locked down 9148 | -10/Materials | Build established: Scavenger-Mutant 10156 | -10/Materials | Discovered new exit (range 15) 10581 | -10/Materials | Discovered new exit (range 11) 10678 | -10/Materials | Build established: Mutant 11221 | -10/Materials | Discovered new exit (range 11) 12498 | -10/Materials | Entered another Materials area 12498 | -9/Materials | Evolved 2 slots: Propulsion x1, Utility x1 12894 | -9/Materials | Build established: Scavenger-Mutant 12919 | -9/Materials | Repaired Grenade Launcher? 13113 | -9/Materials | Discovered new exit (range 18) 13635 | -9/Materials | Discovered new exit (range 15) 13956 | -9/Materials | Discovered new exit (range 10) 13961 | -9/Materials | Build established: Mutant 14656 | -9/Materials | Identified exit to Materials 17169 | -9/Materials | Entered Mines 17176 | -9/Mines | Assisted by bots powering up and referring to "LRC-V3" 17653 | -9/Mines | A Derelict revealed a hidden shortcut to a safe place 17664 | -9/Mines | A weapon hastily lodged in a ceiling crevice suddenly fell to the ground 17707 | -9/Mines | Found a Scrap Suit stashed away for nefarious purposes 17713 | -9/Mines | Found Scrap Suit 17745 | -9/Mines | Learned location of 1 exit from Materials 18077 | -9/Mines | Discovered exit to Materials (range 7) 18430 | -9/Mines | Discovered exit to Materials (range 10) 18437 | -9/Mines | Found a damaged Exp. Sensor Array with a note attached 18452 | -9/Mines | Found Prototype Device 18897 | -9/Mines | Entered Zion 18897 | -7/Zion | Accompanied by 3 allies 18999 | -7/Zion | Discovered new exit (range 15) 19261 | -7/Zion | System corruption cleaned by Quarantine Array 19371 | -7/Zion | Learned Factory emergency access door positions 19406 | -7/Zion | Given the Hacking Drone Bay 19407 | -7/Zion | Found Prototype Device 19495 | -7/Zion | Learned Factory emergency access door positions 19508 | -7/Zion | Given A8's code to call for help 19915 | -7/Zion | Met Imprinter 20088 | -7/Zion | Imprinted 20091 | -7/Zion | Declared Zion's savior 20346 | -7/Zion | Found CR-A16's Pointy Stick 20871 | -7/Zion | Received a visual enhancement algorithm 20871 | -7/Zion | Ran a visual enhancement algorithm 20871 | -7/Zion | Ran a visual enhancement algorithm 20924 | -7/Zion | Enhanced Grunt warped into view, answering call for help 20926 | -7/Zion | Enhanced Grunt warped into view, answering call for help 21435 | -7/Zion | Learned Factory trap positions 21728 | -7/Zion | Found Prototype Hackware 21917 | -7/Zion | Build established: Scavenger-Mutant 22580 | -7/Zion | Attacked by Zionites 22621 | -7/Zion | Core integrity fell below 50% 22633 | -7/Zion | Lost 5 allies 22637 | -7/Zion | Core integrity fell below 20% 22650 | -7/Zion | Destroyed by 6H-DPR(M) with Battle Cannon Last Messages --------------- Critical hit (Burn: +80). 9C-5OO(z) knocked back. Spk. Medium Treads severed. FVQA0 O FZVD3YQG%UQP